[Event "Late-Titled-Tuesday-Blitz-June-25-2024"]
[Site "Chess.com"]
[Date "2024.06.25"]
[Round "7"]
[White "Bkmzzzzz"]
[Black "DanylaBagrov"]
[Result "0-1"]
[WhiteElo "2393"]
[BlackElo "2569"]
[TimeControl "180+1"]
[EndTime "15:18:15 PDT"]
[Termination "DanylaBagrov won on time"]

1. e4 {[%clk 0:03:00.9]} 1... c5 {[%clk 0:02:55.6]} 2. Nf3 {[%clk 0:03:00.8]}
2... a6 {[%clk 0:02:56.2]} 3. c4 {[%clk 0:02:57.2]} 3... Nc6 {[%clk 0:02:56]} 4.
d4 {[%clk 0:02:56.6]} 4... cxd4 {[%clk 0:02:56.9]} 5. Nxd4 {[%clk 0:02:57]} 5...
Nf6 {[%clk 0:02:57.6]} 6. Nc3 {[%clk 0:02:57.3]} 6... e5 {[%clk 0:02:58.2]} 7.
Nf5 {[%clk 0:02:49.3]} 7... d5 {[%clk 0:02:58.3]} 8. cxd5 {[%clk 0:02:44.7]}
8... Nxe4 {[%clk 0:02:56]} 9. Ne3 {[%clk 0:02:32.6]} 9... Nxc3 {[%clk
0:02:21.2]} 10. bxc3 {[%clk 0:02:33.5]} 10... Na5 {[%clk 0:02:20]} 11. Bd3
{[%clk 0:02:21.6]} 11... Be7 {[%clk 0:02:12.1]} 12. O-O {[%clk 0:02:15.4]} 12...
g6 {[%clk 0:02:09.8]} 13. c4 {[%clk 0:01:45.4]} 13... O-O {[%clk 0:01:43.7]} 14.
Bd2 {[%clk 0:01:44.2]} 14... b5 {[%clk 0:01:37.4]} 15. cxb5 {[%clk 0:01:39.1]}
15... axb5 {[%clk 0:01:38.3]} 16. Bxb5 {[%clk 0:01:39.6]} 16... Ba6 {[%clk
0:01:28.4]} 17. Qe2 {[%clk 0:01:30.5]} 17... Bb7 {[%clk 0:01:10.2]} 18. Rfd1
{[%clk 0:01:25.2]} 18... f5 {[%clk 0:01:04.6]} 19. d6 {[%clk 0:01:01.2]} 19...
Bf6 {[%clk 0:01:05]} 20. a4 {[%clk 0:00:55.1]} 20... Kh8 {[%clk 0:00:48.2]} 21.
d7 {[%clk 0:00:54.4]} 21... f4 {[%clk 0:00:36]} 22. Ng4 {[%clk 0:00:41.1]} 22...
f3 {[%clk 0:00:34.5]} 23. gxf3 {[%clk 0:00:36.5]} 23... Nb3 {[%clk 0:00:32]} 24.
Ra3 {[%clk 0:00:25.9]} 24... Nd4 {[%clk 0:00:29.9]} 25. Qc4 {[%clk 0:00:18.1]}
25... Bxf3 {[%clk 0:00:24.4]} 26. Nxf6 {[%clk 0:00:15]} 26... Qxf6 {[%clk
0:00:15.2]} 27. Re1 {[%clk 0:00:14.5]} 27... Qf5 {[%clk 0:00:08]} 28. Rxe5
{[%clk 0:00:09.3]} 28... Qg4+ {[%clk 0:00:03]} 29. Kf1 {[%clk 0:00:09.7]} 29...
Qg2+ {[%clk 0:00:03.4]} 30. Ke1 {[%clk 0:00:10.4]} 30... Bh5 {[%clk 0:00:02.3]}
31. Rxh5 {[%clk 0:00:09.5]} 31... Qg1+ {[%clk 0:00:02.1]} 32. Qf1 {[%clk
0:00:09.6]} 32... Nf3+ {[%clk 0:00:02.8]} 33. Kd1 {[%clk 0:00:08.7]} 33... Qxf1+
{[%clk 0:00:02.8]} 34. Bxf1 {[%clk 0:00:07.9]} 34... Nxd2 {[%clk 0:00:02.7]} 35.
Rd5 {[%clk 0:00:06.1]} 35... Nxf1 {[%clk 0:00:02.8]} 36. Ke2 {[%clk 0:00:06.6]}
36... Nxh2 {[%clk 0:00:03]} 37. Rad3 {[%clk 0:00:06.3]} 37... Rfd8 {[%clk
0:00:02.6]} 38. a5 {[%clk 0:00:06.8]} 38... Ng4 {[%clk 0:00:02.8]} 39. Rd6
{[%clk 0:00:06.1]} 39... Ne5 {[%clk 0:00:02.8]} 40. R3d5 {[%clk 0:00:05.5]}
40... Nc4 {[%clk 0:00:03.4]} 41. Rc6 {[%clk 0:00:05.5]} 41... Nxa5 {[%clk
0:00:02.5]} 42. Rcc5 {[%clk 0:00:03.7]} 42... Nb3 {[%clk 0:00:02.9]} 43. Rc7
{[%clk 0:00:04.3]} 43... Kg7 {[%clk 0:00:02.5]} 44. Kd3 {[%clk 0:00:04.6]} 44...
Kf7 {[%clk 0:00:02.7]} 45. Kc4 {[%clk 0:00:05.1]} 45... Rab8 {[%clk 0:00:03.3]}
46. Rd3 {[%clk 0:00:04.6]} 46... Nc1 {[%clk 0:00:03.4]} 47. Rd1 {[%clk
0:00:04.5]} 47... Ne2 {[%clk 0:00:03.7]} 48. Re1 {[%clk 0:00:04.8]} 48... Nf4
{[%clk 0:00:03.8]} 49. Kc5 {[%clk 0:00:05.2]} 49... Ne6+ {[%clk 0:00:04.2]} 50.
Kd6 {[%clk 0:00:03.4]} 50... Nxc7 {[%clk 0:00:04.8]} 51. Kxc7 {[%clk 0:00:04.3]}
51... Ra8 {[%clk 0:00:05.1]} 52. Rb1 {[%clk 0:00:04.4]} 52... Rf8 {[%clk
0:00:04.9]} 53. Re1 {[%clk 0:00:04.4]} 53... Ra7+ {[%clk 0:00:04.6]} 54. Kd6
{[%clk 0:00:04.3]} 54... Rd8 {[%clk 0:00:04.4]} 55. Re7+ {[%clk 0:00:03.4]}
55... Kf6 {[%clk 0:00:05]} 56. Rxh7 {[%clk 0:00:03.5]} 56... Kf5 {[%clk
0:00:04.4]} 57. Rf7+ {[%clk 0:00:03.3]} 57... Kg4 {[%clk 0:00:04.2]} 58. Ke6
{[%clk 0:00:03.8]} 58... g5 {[%clk 0:00:04.4]} 59. Rg7 {[%clk 0:00:03.8]} 59...
Kf4 {[%clk 0:00:04.6]} 60. Rf7+ {[%clk 0:00:03.1]} 60... Ke4 {[%clk 0:00:05.1]}
61. Kd6 {[%clk 0:00:03.6]} 61... g4 {[%clk 0:00:04.8]} 62. Rg7 {[%clk
0:00:03.4]} 62... Kf5 {[%clk 0:00:04.5]} 63. Rf7+ {[%clk 0:00:04]} 63... Kg6
{[%clk 0:00:05]} 64. Re7 {[%clk 0:00:04.5]} 64... Kf6 {[%clk 0:00:04.5]} 65. Rh7
{[%clk 0:00:04.6]} 65... Ra2 {[%clk 0:00:04.3]} 66. Kc7 {[%clk 0:00:04.4]} 66...
Raa8 {[%clk 0:00:03.8]} 67. Rh6+ {[%clk 0:00:04.3]} 67... Kg5 {[%clk 0:00:03.5]}
68. Rd6 {[%clk 0:00:04.6]} 68... Kf5 {[%clk 0:00:03.6]} 69. Rd3 {[%clk
0:00:04.7]} 69... Ke4 {[%clk 0:00:03.6]} 70. Re3+ {[%clk 0:00:05]} 70... Kf4
{[%clk 0:00:03.9]} 71. Rd3 {[%clk 0:00:05.3]} 71... Rab8 {[%clk 0:00:03.7]} 72.
Re3 {[%clk 0:00:05.2]} 72... Ra8 {[%clk 0:00:02.2]} 73. Rd3 {[%clk 0:00:05.5]}
73... Kf5 {[%clk 0:00:01.8]} 74. Re3 {[%clk 0:00:05.8]} 74... Rh8 {[%clk
0:00:01.4]} 75. Rd3 {[%clk 0:00:06.3]} 75... Rad8 {[%clk 0:00:02]} 76. Re3
{[%clk 0:00:05.7]} 76... Rhg8 {[%clk 0:00:01.7]} 77. Rd3 {[%clk 0:00:06.1]}
77... Ke4 {[%clk 0:00:02.3]} 78. Re3+ {[%clk 0:00:06.3]} 78... Kd4 {[%clk
0:00:03]} 79. Rd3+ {[%clk 0:00:06.7]} 79... Kxd3 {[%clk 0:00:03.2]} 0-1

[Event "Late-Titled-Tuesday-Blitz-June-25-2024"]
[Site "Chess.com"]
[Date "2024.06.25"]
[Round "7"]
[White "GlavkonVVS"]
[Black "Charodej1"]
[Result "0-1"]
[WhiteElo "2634"]
[BlackElo "2507"]
[TimeControl "180+1"]
[EndTime "15:18:25 PDT"]
[Termination "Charodej1 won on time"]

1. c4 {[%clk 0:03:00.9]} 1... e5 {[%clk 0:02:59.3]} 2. Nc3 {[%clk 0:03:00.8]}
2... Nf6 {[%clk 0:02:58.8]} 3. g3 {[%clk 0:03:01]} 3... d5 {[%clk 0:02:57.5]} 4.
cxd5 {[%clk 0:03:00.5]} 4... Nxd5 {[%clk 0:02:58.4]} 5. Bg2 {[%clk 0:03:00.8]}
5... Nb6 {[%clk 0:02:58.1]} 6. Nf3 {[%clk 0:03:00.2]} 6... Nc6 {[%clk
0:02:57.9]} 7. d3 {[%clk 0:02:59.5]} 7... Be7 {[%clk 0:02:57.5]} 8. O-O {[%clk
0:02:59.4]} 8... O-O {[%clk 0:02:57.3]} 9. a3 {[%clk 0:02:59.4]} 9... a5 {[%clk
0:02:54.6]} 10. Rb1 {[%clk 0:02:58.9]} 10... a4 {[%clk 0:02:53.6]} 11. Be3
{[%clk 0:02:52.6]} 11... Nd5 {[%clk 0:02:25.9]} 12. Nxa4 {[%clk 0:02:42]} 12...
e4 {[%clk 0:01:58.5]} 13. Ne1 {[%clk 0:02:26.6]} 13... exd3 {[%clk 0:01:48.6]}
14. exd3 {[%clk 0:02:21.4]} 14... Nxe3 {[%clk 0:01:23.8]} 15. fxe3 {[%clk
0:02:21.1]} 15... Bg5 {[%clk 0:01:22.5]} 16. Nc3 {[%clk 0:02:01.9]} 16... Bxe3+
{[%clk 0:01:21.4]} 17. Kh1 {[%clk 0:02:02.4]} 17... Nd4 {[%clk 0:01:16.1]} 18.
Nc2 {[%clk 0:01:59.8]} 18... Nxc2 {[%clk 0:01:15.3]} 19. Qxc2 {[%clk 0:02:00]}
19... c6 {[%clk 0:01:08.1]} 20. Ne4 {[%clk 0:01:46.4]} 20... Bd4 {[%clk
0:01:03.6]} 21. Qb3 {[%clk 0:01:32]} 21... Qb6 {[%clk 0:00:58.4]} 22. Qxb6
{[%clk 0:01:28.4]} 22... Bxb6 {[%clk 0:00:59.3]} 23. Nd6 {[%clk 0:01:28.8]}
23... Bc5 {[%clk 0:00:50]} 24. Nxc8 {[%clk 0:01:28.4]} 24... Raxc8 {[%clk
0:00:50.9]} 25. b4 {[%clk 0:01:26.8]} 25... Bd6 {[%clk 0:00:46.1]} 26. a4 {[%clk
0:01:26.2]} 26... Rc7 {[%clk 0:00:43.2]} 27. b5 {[%clk 0:01:26.1]} 27... c5
{[%clk 0:00:32.1]} 28. b6 {[%clk 0:01:20.6]} 28... Re7 {[%clk 0:00:30.2]} 29. a5
{[%clk 0:01:20.2]} 29... Rd8 {[%clk 0:00:25.6]} 30. Rb5 {[%clk 0:01:13.2]} 30...
g6 {[%clk 0:00:20.6]} 31. Bd5 {[%clk 0:00:58.6]} 31... Kg7 {[%clk 0:00:20.3]}
32. Bc4 {[%clk 0:00:57.9]} 32... f5 {[%clk 0:00:20.2]} 33. Rf2 {[%clk
0:00:55.8]} 33... h5 {[%clk 0:00:20.1]} 34. Kg2 {[%clk 0:00:55.6]} 34... Kf6
{[%clk 0:00:18.2]} 35. Ra2 {[%clk 0:00:54.8]} 35... Ke5 {[%clk 0:00:16]} 36. a6
{[%clk 0:00:52.6]} 36... bxa6 {[%clk 0:00:16.4]} 37. Rxa6 {[%clk 0:00:52.7]}
37... Kd4 {[%clk 0:00:16.9]} 38. Ra2 {[%clk 0:00:52.4]} 38... Rb8 {[%clk
0:00:13.4]} 39. Rab2 {[%clk 0:00:48]} 39... Reb7 {[%clk 0:00:12.9]} 40. Kf3
{[%clk 0:00:44.8]} 40... g5 {[%clk 0:00:12.1]} 41. Be6 {[%clk 0:00:41.9]} 41...
Ke5 {[%clk 0:00:10.4]} 42. Bc4 {[%clk 0:00:39.9]} 42... Kd4 {[%clk 0:00:10]} 43.
Kg2 {[%clk 0:00:38.4]} 43... h4 {[%clk 0:00:09.8]} 44. Rf2 {[%clk 0:00:34.6]}
44... Ke5 {[%clk 0:00:05.8]} 45. Re2+ {[%clk 0:00:33.1]} 45... Kd4 {[%clk
0:00:05.8]} 46. Re6 {[%clk 0:00:29.1]} 46... Rd8 {[%clk 0:00:05.8]} 47. gxh4
{[%clk 0:00:28]} 47... gxh4 {[%clk 0:00:05.8]} 48. Rf6 {[%clk 0:00:27.6]} 48...
Rg7+ {[%clk 0:00:04.6]} 49. Kh3 {[%clk 0:00:26.8]} 49... Rg5 {[%clk 0:00:04.9]}
50. b7 {[%clk 0:00:25.9]} 50... Be5 {[%clk 0:00:04.2]} 51. Rf7 {[%clk
0:00:23.2]} 51... Rg1 {[%clk 0:00:03.3]} 52. Rb6 {[%clk 0:00:18.6]} 52... Rh1
{[%clk 0:00:03]} 53. Kxh4 {[%clk 0:00:16.9]} 53... Rxh2+ {[%clk 0:00:03.9]} 54.
Kg5 {[%clk 0:00:16.9]} 54... f4 {[%clk 0:00:04.7]} 55. Re6 {[%clk 0:00:15.9]}
55... Rg2+ {[%clk 0:00:05.2]} 56. Kf5 {[%clk 0:00:15.8]} 56... f3 {[%clk
0:00:05.7]} 57. Rxe5 {[%clk 0:00:13.5]} 57... f2 {[%clk 0:00:06.6]} 58. Re4+
{[%clk 0:00:13.8]} 58... Kc3 {[%clk 0:00:06.4]} 59. Rf4 {[%clk 0:00:14]} 59...
f1=Q {[%clk 0:00:03.2]} 60. Rxf1 {[%clk 0:00:13.7]} 60... Rb2 {[%clk 0:00:03]}
61. Rf4 {[%clk 0:00:13.1]} 61... Rb6 {[%clk 0:00:02.7]} 62. Kg5 {[%clk
0:00:11.8]} 62... Rb8 {[%clk 0:00:02.6]} 63. R4f6 {[%clk 0:00:11.4]} 63... R6xb7
{[%clk 0:00:02.8]} 64. Rxb7 {[%clk 0:00:11.5]} 64... Rxb7 {[%clk 0:00:03.7]} 65.
Kf5 {[%clk 0:00:10.5]} 65... Rb1 {[%clk 0:00:02.9]} 66. Ke6 {[%clk 0:00:09.6]}
66... Kd4 {[%clk 0:00:02.7]} 67. Kd7 {[%clk 0:00:07.6]} 67... Kc3 {[%clk
0:00:02.6]} 68. Kc6 {[%clk 0:00:06.1]} 68... Kb4 {[%clk 0:00:03.1]} 69. Rf5
{[%clk 0:00:05.7]} 69... Rh1 {[%clk 0:00:01.7]} 70. Rd5 {[%clk 0:00:05.6]} 70...
Rh6+ {[%clk 0:00:02.3]} 71. Rd6 {[%clk 0:00:05.7]} 71... Rh5 {[%clk 0:00:02.3]}
72. Bd5 {[%clk 0:00:05.6]} 72... Rg5 {[%clk 0:00:02.3]} 73. Be4 {[%clk
0:00:05.5]} 73... c4 {[%clk 0:00:01.9]} 74. d4 {[%clk 0:00:04.4]} 74... c3
{[%clk 0:00:02.1]} 75. d5 {[%clk 0:00:03.6]} 75... Kb3 {[%clk 0:00:02.7]} 76.
Kd7 {[%clk 0:00:02]} 76... c2 {[%clk 0:00:03.2]} 77. Bxc2+ {[%clk 0:00:02.1]}
77... Kxc2 {[%clk 0:00:04.1]} 78. Rc6+ {[%clk 0:00:01.8]} 78... Kd3 {[%clk
0:00:04.8]} 79. d6 {[%clk 0:00:02.3]} 79... Ke4 {[%clk 0:00:05.3]} 80. Ra6
{[%clk 0:00:01]} 80... Rg7+ {[%clk 0:00:05.2]} 0-1

[Event "Late-Titled-Tuesday-Blitz-June-25-2024"]
[Site "Chess.com"]
[Date "2024.06.25"]
[Round "7"]
[White "Mikhail_Golubev"]
[Black "PoAslan"]
[Result "1-0"]
[WhiteElo "2659"]
[BlackElo "2450"]
[TimeControl "180+1"]
[EndTime "15:18:53 PDT"]
[Termination "Mikhail_Golubev won by resignation"]

1. e4 {[%clk 0:03:00.9]} 1... c5 {[%clk 0:02:59.9]} 2. Nf3 {[%clk 0:03:00.4]}
2... e6 {[%clk 0:03:00.1]} 3. d4 {[%clk 0:03:00.3]} 3... cxd4 {[%clk 0:03:01]}
4. Nxd4 {[%clk 0:03:00.4]} 4... Nc6 {[%clk 0:03:01.6]} 5. Nc3 {[%clk 0:03:00.2]}
5... Qc7 {[%clk 0:03:02.2]} 6. Be3 {[%clk 0:02:59.1]} 6... a6 {[%clk 0:03:02.4]}
7. a3 {[%clk 0:02:59.2]} 7... Nf6 {[%clk 0:02:58.9]} 8. f4 {[%clk 0:02:57.6]}
8... d6 {[%clk 0:02:38.6]} 9. Qf3 {[%clk 0:02:56.8]} 9... Bd7 {[%clk 0:02:35.3]}
10. O-O-O {[%clk 0:02:47.9]} 10... h5 {[%clk 0:02:24.9]} 11. Kb1 {[%clk
0:02:32.4]} 11... Nxd4 {[%clk 0:02:22.8]} 12. Bxd4 {[%clk 0:02:26.4]} 12... e5
{[%clk 0:02:23]} 13. fxe5 {[%clk 0:02:26]} 13... dxe5 {[%clk 0:02:23.2]} 14. Qg3
{[%clk 0:02:20]} 14... Bd6 {[%clk 0:02:02.5]} 15. Qxg7 {[%clk 0:02:05.4]} 15...
Ke7 {[%clk 0:02:02.8]} 16. Qxf6+ {[%clk 0:01:51.9]} 16... Kxf6 {[%clk
0:02:02.5]} 17. Nd5+ {[%clk 0:01:51.5]} 17... Kg6 {[%clk 0:01:44.1]} 18. Nxc7
{[%clk 0:01:52.4]} 18... Bxc7 {[%clk 0:01:39.5]} 19. Bxe5 {[%clk 0:01:42.3]}
19... Bxe5 {[%clk 0:01:40.4]} 20. Rxd7 {[%clk 0:01:42]} 20... Rhd8 {[%clk
0:01:40.7]} 21. Rxd8 {[%clk 0:01:36.9]} 21... Rxd8 {[%clk 0:01:41.6]} 22. Bd3
{[%clk 0:01:36.9]} 22... b5 {[%clk 0:01:38.7]} 23. h3 {[%clk 0:01:30.2]} 23...
h4 {[%clk 0:01:37]} 24. Rf1 {[%clk 0:01:26.9]} 24... f6 {[%clk 0:01:35.2]} 25.
Rf3 {[%clk 0:01:26.3]} 25... Rb8 {[%clk 0:01:33.3]} 26. c3 {[%clk 0:01:23.5]}
26... a5 {[%clk 0:01:33.1]} 27. Be2 {[%clk 0:00:54.8]} 27... Kf7 {[%clk
0:01:10.3]} 28. Kc2 {[%clk 0:00:46.1]} 28... Ke7 {[%clk 0:01:05.6]} 29. Rd3
{[%clk 0:00:37.4]} 29... b4 {[%clk 0:01:03.7]} 30. cxb4 {[%clk 0:00:32.6]} 30...
axb4 {[%clk 0:01:03.7]} 31. a4 {[%clk 0:00:31.8]} 31... Ra8 {[%clk 0:00:52.2]}
32. Kb3 {[%clk 0:00:30.2]} 32... Bd6 {[%clk 0:00:48.7]} 33. Bg4 {[%clk
0:00:28.4]} 33... Ra5 {[%clk 0:00:45.8]} 34. Rd5 {[%clk 0:00:24.6]} 34... Ra6
{[%clk 0:00:39.4]} 35. Rb5 {[%clk 0:00:20.5]} 35... Rc6 {[%clk 0:00:35.3]} 36.
Rb7+ {[%clk 0:00:19.9]} 36... Kd8 {[%clk 0:00:35.8]} 37. a5 {[%clk 0:00:18.7]}
37... Bc7 {[%clk 0:00:32.5]} 38. Kxb4 {[%clk 0:00:13.4]} 38... Rc2 {[%clk
0:00:28.8]} 39. Kb3 {[%clk 0:00:10.1]} 39... Rc6 {[%clk 0:00:23.1]} 40. Be2
{[%clk 0:00:06.3]} 40... Bxa5 {[%clk 0:00:22.4]} 41. Rb5 {[%clk 0:00:03.5]}
41... Bc7 {[%clk 0:00:22]} 42. Rd5+ {[%clk 0:00:03.2]} 42... Ke7 {[%clk
0:00:21.6]} 43. Bg4 {[%clk 0:00:03.2]} 43... Bd6 {[%clk 0:00:21.4]} 44. Ka2
{[%clk 0:00:02.3]} 44... Rc2 {[%clk 0:00:20.6]} 45. Bf3 {[%clk 0:00:01]} 45...
Be5 {[%clk 0:00:20.6]} 46. Rb5 {[%clk 0:00:01.2]} 46... Kd6 {[%clk 0:00:21]} 47.
Ka3 {[%clk 0:00:01]} 47... Rc1 {[%clk 0:00:20.4]} 48. Rb3 {[%clk 0:00:01]} 48...
Kc5 {[%clk 0:00:19]} 49. Ka2 {[%clk 0:00:01.1]} 49... Kc4 {[%clk 0:00:16.9]} 50.
Rb7 {[%clk 0:00:01.2]} 50... Kd3 {[%clk 0:00:15.9]} 51. Rb6 {[%clk 0:00:01.3]}
51... Rc5 {[%clk 0:00:15]} 52. Rb7 {[%clk 0:00:01.3]} 52... Ra5+ {[%clk
0:00:15.2]} 53. Kb1 {[%clk 0:00:01.5]} 53... Rc5 {[%clk 0:00:15.1]} 54. Rd7+
{[%clk 0:00:01.7]} 54... Kc4 {[%clk 0:00:14.7]} 55. Be2+ {[%clk 0:00:01.8]}
55... Kb4 {[%clk 0:00:14.9]} 56. Rb7+ {[%clk 0:00:02.1]} 56... Ka4 {[%clk
0:00:15.2]} 57. Bd1+ {[%clk 0:00:01.5]} 57... Ka5 {[%clk 0:00:14.4]} 58. b4+
{[%clk 0:00:02]} 58... Ka6 {[%clk 0:00:15.1]} 59. bxc5 {[%clk 0:00:01.6]} 59...
Kxb7 {[%clk 0:00:15.4]} 60. Ba4 {[%clk 0:00:01.5]} 60... Bd4 {[%clk 0:00:15.5]}
61. c6+ {[%clk 0:00:01.3]} 61... Kc7 {[%clk 0:00:16.4]} 62. Kc2 {[%clk
0:00:01.5]} 62... Be5 {[%clk 0:00:17.1]} 63. Kd3 {[%clk 0:00:01.7]} 63... Kd6
{[%clk 0:00:17.4]} 64. Kc4 {[%clk 0:00:01.8]} 64... Bg3 {[%clk 0:00:17.4]} 65.
Kb5 {[%clk 0:00:01.9]} 65... Kc7 {[%clk 0:00:17.8]} 66. Bd1 {[%clk 0:00:02.3]}
66... Be5 {[%clk 0:00:17.6]} 67. Bg4 {[%clk 0:00:02.5]} 67... Bg3 {[%clk
0:00:17.4]} 68. Bd7 {[%clk 0:00:03]} 68... Bf2 {[%clk 0:00:15.9]} 69. Kc4 {[%clk
0:00:03.5]} 69... Kd6 {[%clk 0:00:15.8]} 70. Kd3 {[%clk 0:00:03.5]} 70... Bg3
{[%clk 0:00:15.9]} 71. Ke2 {[%clk 0:00:03.9]} 71... Be5 {[%clk 0:00:16]} 72. Kf3
{[%clk 0:00:04.2]} 72... Bg3 {[%clk 0:00:16.2]} 73. Kg4 {[%clk 0:00:04.2]} 73...
Kc7 {[%clk 0:00:15.4]} 74. Kf5 {[%clk 0:00:04.3]} 74... Be5 {[%clk 0:00:15.7]}
75. Be8 {[%clk 0:00:04.1]} 75... Kd6 {[%clk 0:00:14.6]} 76. Bd7 {[%clk 0:00:04]}
76... Kc7 {[%clk 0:00:15.1]} 77. Ke6 {[%clk 0:00:04.1]} 77... Bd4 {[%clk
0:00:14.9]} 78. Kd5 {[%clk 0:00:04.1]} 78... Be5 {[%clk 0:00:15.2]} 79. Bf5
{[%clk 0:00:03.9]} 79... Bg3 {[%clk 0:00:14.7]} 80. Bg4 {[%clk 0:00:04.2]} 80...
Be5 {[%clk 0:00:15]} 81. Bd1 {[%clk 0:00:04.7]} 81... Ba1 {[%clk 0:00:15.1]} 82.
Ba4 {[%clk 0:00:05.2]} 82... Be5 {[%clk 0:00:15.6]} 83. Ke6 {[%clk 0:00:05.6]}
83... Ba1 {[%clk 0:00:16.1]} 84. Kf5 {[%clk 0:00:06.2]} 84... Be5 {[%clk
0:00:16.6]} 85. Kg4 {[%clk 0:00:06.4]} 85... Bg3 {[%clk 0:00:17.2]} 86. e5
{[%clk 0:00:06.3]} 86... Bxe5 {[%clk 0:00:17.4]} 87. Kxh4 {[%clk 0:00:06]} 87...
Kd6 {[%clk 0:00:15.9]} 88. Kg4 {[%clk 0:00:06]} 88... Ke7 {[%clk 0:00:16.5]} 89.
Kf5 {[%clk 0:00:05.5]} 89... Kf7 {[%clk 0:00:16.4]} 90. h4 {[%clk 0:00:05.3]}
90... Kg7 {[%clk 0:00:17]} 91. h5 {[%clk 0:00:04.4]} 91... Bc7 {[%clk
0:00:16.2]} 92. g4 {[%clk 0:00:04.8]} 92... Be5 {[%clk 0:00:14.9]} 93. Bb3
{[%clk 0:00:05]} 93... Bd6 {[%clk 0:00:14.2]} 94. Bc4 {[%clk 0:00:04.3]} 94...
Bb8 {[%clk 0:00:14.3]} 95. Bd3 {[%clk 0:00:03.6]} 95... Bc7 {[%clk 0:00:14.2]}
96. Ke6 {[%clk 0:00:03.8]} 96... Be5 {[%clk 0:00:12.5]} 97. Bf5 {[%clk
0:00:04.2]} 97... Kh6 {[%clk 0:00:13]} 98. Kd7 {[%clk 0:00:04.5]} 98... Kg5
{[%clk 0:00:12.7]} 99. c7 {[%clk 0:00:04.9]} 99... Bxc7 {[%clk 0:00:12.8]} 100.
Kxc7 {[%clk 0:00:05.3]} 100... Kh6 {[%clk 0:00:12.2]} 101. Kd6 {[%clk
0:00:05.9]} 101... Kg5 {[%clk 0:00:12.9]} 102. Ke6 {[%clk 0:00:06.2]} 102... Kh6
{[%clk 0:00:13.8]} 103. Kf7 {[%clk 0:00:05.1]} 103... Kg5 {[%clk 0:00:14.2]}
104. Kg7 {[%clk 0:00:05.7]} 1-0

[Event "Late-Titled-Tuesday-Blitz-June-25-2024"]
[Site "Chess.com"]
[Date "2024.06.25"]
[Round "8"]
[White "EternalNight8"]
[Black "enriquebutti"]
[Result "1-0"]
[WhiteElo "2388"]
[BlackElo "2190"]
[TimeControl "180+1"]
[EndTime "15:21:16 PDT"]
[Termination "EternalNight8 won by resignation"]

1. d4 {[%clk 0:03:00.9]} 1... Nf6 {[%clk 0:02:57.3]} 2. Bg5 {[%clk 0:03:00.1]}
2... d5 {[%clk 0:02:55.2]} 3. e3 {[%clk 0:03:00.2]} 3... g6 {[%clk 0:02:52.6]}
4. Bxf6 {[%clk 0:02:59.4]} 4... exf6 {[%clk 0:02:52.2]} 5. c4 {[%clk 0:03:00]}
5... c6 {[%clk 0:02:49.4]} 6. Nc3 {[%clk 0:02:55.5]} 6... Bg7 {[%clk 0:02:37.7]}
7. cxd5 {[%clk 0:02:54.9]} 7... cxd5 {[%clk 0:02:37.1]} 8. g3 {[%clk 0:02:55.2]}
8... Be6 {[%clk 0:02:36.1]} 9. Bg2 {[%clk 0:02:54.6]} 9... Nc6 {[%clk
0:02:35.4]} 10. Nge2 {[%clk 0:02:54.7]} 10... Rc8 {[%clk 0:02:30]} 11. O-O
{[%clk 0:02:54.5]} 11... a6 {[%clk 0:02:27.4]} 12. Nf4 {[%clk 0:02:49]} 12...
Ne7 {[%clk 0:02:26.7]} 13. Qb3 {[%clk 0:02:48.1]} 1-0

[Event "Late-Titled-Tuesday-Blitz-June-25-2024"]
[Site "Chess.com"]
[Date "2024.06.25"]
[Round "8"]
[White "GMsKoRPioN"]
[Black "schondeln"]
[Result "1/2-1/2"]
[WhiteElo "2592"]
[BlackElo "2384"]
[TimeControl "180+1"]
[EndTime "15:21:17 PDT"]
[Termination "Game drawn by repetition"]

1. d4 {[%clk 0:03:00.9]} 1... d5 {[%clk 0:02:59.8]} 2. c4 {[%clk 0:03:01.7]}
2... c6 {[%clk 0:03:00.1]} 3. Nf3 {[%clk 0:03:01.9]} 3... Nf6 {[%clk 0:03:00.2]}
4. Nc3 {[%clk 0:03:02]} 4... dxc4 {[%clk 0:02:59.6]} 5. a4 {[%clk 0:03:01.8]}
5... Bf5 {[%clk 0:02:59.3]} 6. e3 {[%clk 0:03:02.4]} 6... e6 {[%clk 0:02:59]} 7.
Bxc4 {[%clk 0:03:03]} 7... Bb4 {[%clk 0:02:59.5]} 8. O-O {[%clk 0:03:02.5]} 8...
Nbd7 {[%clk 0:03:00]} 9. Qb3 {[%clk 0:03:02.8]} 9... a5 {[%clk 0:02:58.2]} 10.
Na2 {[%clk 0:02:56.3]} 10... Be7 {[%clk 0:02:57.8]} 11. Qxb7 {[%clk 0:02:52.7]}
11... Rb8 {[%clk 0:02:56.5]} 12. Qxc6 {[%clk 0:02:52.8]} 12... Rc8 {[%clk
0:02:56.6]} 13. Qa6 {[%clk 0:02:52.4]} 13... Ra8 {[%clk 0:02:56.3]} 14. Qb5
{[%clk 0:02:43.7]} 14... Rb8 {[%clk 0:02:55.6]} 15. Qa6 {[%clk 0:02:21.9]} 15...
Ra8 {[%clk 0:02:54.5]} 16. Qb5 {[%clk 0:02:21.5]} 16... Rb8 {[%clk 0:02:54]} 17.
Qa6 {[%clk 0:02:20.9]} 17... Ra8 {[%clk 0:02:53.7]} 1/2-1/2

[Event "Late-Titled-Tuesday-Blitz-June-25-2024"]
[Site "Chess.com"]
[Date "2024.06.25"]
[Round "8"]
[White "hansen"]
[Black "Pachonpower"]
[Result "1-0"]
[WhiteElo "2957"]
[BlackElo "2476"]
[TimeControl "180+1"]
[EndTime "15:21:46 PDT"]
[Termination "hansen won by resignation"]

1. e4 {[%clk 0:03:00.9]} 1... e6 {[%clk 0:02:57.4]} 2. Nf3 {[%clk 0:03:01.3]}
2... d5 {[%clk 0:02:58.3]} 3. Nc3 {[%clk 0:02:58.4]} 3... dxe4 {[%clk
0:02:58.3]} 4. Nxe4 {[%clk 0:02:58.9]} 4... Nd7 {[%clk 0:02:58.4]} 5. Qe2 {[%clk
0:02:59]} 5... Ngf6 {[%clk 0:02:58.4]} 6. g3 {[%clk 0:02:59.7]} 6... b6 {[%clk
0:02:58]} 7. Bg2 {[%clk 0:02:58.9]} 7... Bb7 {[%clk 0:02:58.3]} 8. d3 {[%clk
0:02:59.4]} 8... Be7 {[%clk 0:02:58.4]} 9. O-O {[%clk 0:02:59.8]} 9... O-O
{[%clk 0:02:58.7]} 10. a4 {[%clk 0:03:00.2]} 10... Re8 {[%clk 0:02:59.2]} 11.
Re1 {[%clk 0:03:00.1]} 11... Nf8 {[%clk 0:02:59.7]} 12. Neg5 {[%clk 0:02:57.7]}
12... h6 {[%clk 0:02:59.4]} 13. Nxf7 {[%clk 0:02:55]} 13... Kxf7 {[%clk
0:02:59]} 14. Ne5+ {[%clk 0:02:55.1]} 14... Kg8 {[%clk 0:02:59.5]} 15. Bxb7
{[%clk 0:02:55.6]} 15... Bd6 {[%clk 0:02:34]} 16. Bxa8 {[%clk 0:02:51.9]} 16...
Qxa8 {[%clk 0:02:34.9]} 17. Qf3 {[%clk 0:02:52.5]} 17... Qxf3 {[%clk 0:02:31.3]}
18. Nxf3 {[%clk 0:02:52.6]} 18... e5 {[%clk 0:02:30.8]} 19. Kg2 {[%clk
0:02:51.8]} 19... Ng6 {[%clk 0:02:29.4]} 20. Bd2 {[%clk 0:02:51]} 20... Nd5
{[%clk 0:02:29.2]} 21. a5 {[%clk 0:02:49.5]} 21... b5 {[%clk 0:02:28.8]} 22. a6
{[%clk 0:02:50.2]} 22... c6 {[%clk 0:02:28.5]} 23. c4 {[%clk 0:02:50.7]} 23...
bxc4 {[%clk 0:02:27.1]} 24. dxc4 {[%clk 0:02:51.2]} 24... Nb6 {[%clk 0:02:28]}
25. b3 {[%clk 0:02:50.7]} 25... c5 {[%clk 0:02:26.3]} 26. Bc3 {[%clk 0:02:47.5]}
26... e4 {[%clk 0:02:26.3]} 27. Nd2 {[%clk 0:02:47.3]} 1-0